{"text_format":"1","workbook":"xlsx","n_sheets":2,"sheets":["SPENST SKJEMA NCS NORSK STANDAR","Forklaring skjema"],"not_rendered":{"charts":0,"images":2,"macros":0,"external_links":0,"defined_names":3,"comments":1,"pivot_tables":0},"unopened":[],"bounds":{"document_bytes":16777216,"sheet_cells":100000,"rows_first":2000,"rows_last":500,"rows_between":2000,"halvings":0,"cell_chars":16384,"cell_head_chars":4096},"cells_cut":0,"cells_raw":0,"read":"whole","date_system":"1900"}

{"sheet":"SPENST SKJEMA NCS NORSK STANDAR","index":0,"n_rows":49,"n_cols":25,"rows_kept":49,"cut":false,"hidden":false,"merged":[[7,18,7,19],[2,3,2,4]]}
[]
[null,null,"Risikoområder, vurdering og tiltaksrapport spenst kjeden. (Følger Norsk standard NCS)"]
[null,null,null,"Forklaring utfylling og skala, se neste side",null,null,"SXK=RISIKOGRAD!"]
[null,"Hendelse #","Hendelse #","Risiko-                             område","Uønsket hendelse","Konsekvens/skade-virkning hvis inntreffer (kort beskrivelse)","Sannsynlighet","Konsekvens","Risikograd I","Hendelsestidspunkt","Risikograd II","Påvirknings-mulighet","Tiltak","Ansvar","Frist","Status"]
[null,0,0,"EKSEMPEL:\nBrann","EKSEMPEL:\nBrann i avfallscontainer","EKSEMPEL:\nKonsekvensen kan være at Lageret brenner ned. \nVi vurderer at sannsynligheten for dette er 1. Hvis det først begynner å brenne i avfallscontaineren, er konsekvensen vurdert til 4. Risikoen er 1*4= 4 (risikograd l). \nDETTE GIR EN RISIKOVURDERING OG ET GRUNNLAG FOR TILTAK SOM ER GODT NOK FOR DE FLESTE.\nEnkelte ønsker å supplere med \"hendelsestidspunkt\" og \"påvirkningsmulighet\" når man skal prioritere tiltak.\nHvis vi også vurdere NÅR dette kan inntreffe (hendelsestidspunkt) til \"Om lang tid fra nå\" = 1 (fordi dette har vi faktisk kontroll på), blir Risikograd ll (Risikograd l* Hendelsestidspunkt), dvs 4 * 1 = 4",1,4,{"$f":"G5*H5","v":4},1,{"$f":"I5*J5","v":4},null,"EKSEMPEL:\nHer bør man vurdere tiltak, siden risikoen er gul. Kanskje er tiltaket: \"Opplæring av nyansatte til ikke å kaste  oljefiller i containeren\"","nn","dd.mm.åå"]
[null,1,0,"BRANNVERN"]
[null,1,1,"Hvor stor er risikoen for branntilløp i treningssenteret?",null,null,null,null,null,null,null,null,null,null,null,null,null,null,null,null,"Konsekvens"]
[null,1,2,"Hvor stor er sjansen for blokkering/hindringer i rømningsveier?",null,null,null,null,null,null,null,null,null,null,null,null,null,null,"Sannsynlighet",null,"Lav (Meget liten)","Lav (Meget liten)","Middels (Moderat)","Høy (Meget stor)","Høy (Meget stor)"]
[null,1,3,"Hvor stor er risikonen for at brannalarmanlegget ikke fungere som tiltakenkt?",null,null,null,null,null,null,null,null,null,null,null,null,null,null,null,null,1,2,3,4,5]
[null,1,4,"Hvor stor er risikoen for at sprinkelanlegget ikke fungerer som tiltenkt?",null,null,null,null,null,null,null,null,null,null,null,null,null,null,"Høy (Meget stor)",5,{"$f":"T10*U9","v":5},{"$f":"T10*V9","v":10},{"$f":"T10*W9","v":15},{"$f":"T10*X9","v":20},{"$f":"T10*Y9","v":25}]
[null,1,5,"Hvor stor er risikoen for at håndslokkere, brannslanger og røykvarslere ikke fungerer som tiltenkt?",null,null,null,null,null,null,null,null,null,null,null,null,null,null,"Høy (Meget stor)",4,{"$f":"T11*U9","v":4},{"$f":"T11*V9","v":8},{"$f":"T11*W9","v":12},{"$f":"T11*X9","v":16},{"$f":"T11*Y9","v":20}]
[null,1,6,"Er det et tydelig ansvarforhold knytet til brannansvarlig og brannrutine på senteret",null,null,null,null,null,null,null,null,null,null,null,null,null,null,"Middels (Moderat)",3,{"$f":"T12*U9","v":3},{"$f":"T12*V9","v":6},{"$f":"T12*W9","v":9},{"$f":"T12*X9","v":12},{"$f":"T12*Y9","v":15}]
[null,1,7,"Er branninnstruks, tegninger, avmerkinger av slukningsutstyr osv. synlig og riktig på senteret",null,null,null,null,null,null,null,null,null,null,null,null,null,null,"Lav (Meget liten)",2,{"$f":"T13*U9","v":2},{"$f":"T13*V9","v":4},{"$f":"T13*W9","v":6},{"$f":"T13*X9","v":8},{"$f":"T13*Y9","v":10}]
[null,1,8,"Er det forsvarlig plassering av elektrisk utstyr som kaffemaskin, mikrobølgeovn osv. - Finnes det tidsbryter?"]
[null,1,9,"Er skjøteledninger, støpsler sikre?"]
[null,2,0,"EL-SIKKERHET"]
[null,2,1,"Hvor stor er risikoen for feil i sikringstavle/inntak?"]
[null,2,2,"Hvor stor er risikoen for feil og mangler med det elektriske anlegget i treningssenteret?"]
[null,2,3,"Hvor styr er sjansen for feil og mangler med den elektroniske forsyningen til treningsutstyret og den elektroniske forsyningen som er tilgjengelig for brukerne?"]
[null,3,0,"TEKNISK UTSTYR"]
[null,3,1,"hvor stor er risikoen for feil med ventilasjonsanlegget?"]
[null,3,2,"Hvor stor er risikoen for feil eller mangler med heis?"]
[null,3,3,"Hvor stor er risikoen for feil og mangler med fyringsanlegget?"]
[null,3,4,"Hvor stor er risikoen for feil eller mangler med aircondition-/vermepunkeanlegget?"]
[null,3,5,"Hvor stor er risikoen for feil eller mangler ved adgangskontroll-systemet?"]
[]
[null,4,0,"AVFALL OG SKADEDYR"]
[null,4,1,"Hvor stor er risikoen for branntilløp i søppelcontainere?"]
[null,4,2,"Hvor stor er risikoen for feil ved kildesortering?"]
[null,4,3,"Hvor stor er risikoen for manglende renhold og ryddighet rundt avfallbeholdere?"]
[null,4,4,"Hvor stor er risikoen for skadedyr i treningssenteret?"]
[null,5,0,"BRANNFARLIG VÆSKE/GASS OG KJEMIKALIER"]
[null,5,1,"Hvor stor er risikoen for feil lagring og oppbevaring av brannfarlig væske og gass?"]
[null,5,2,"Hvor stor er risikoen for skader ved bruk av kjemikalier?"]
[null,6,0,"PERSONSIKKERHET"]
[null,6,1,"Hvor stor er risikoen for personskader av treningssenterets ansatte?"]
[null,6,2,"Hvor stor er risikoen for personskader ved innleid arbeidskraft?"]
[null,6,3,"Hvor stor er risikoen for fallulykker?"]
[null,6,4,"Hva er risikoen for snøras og fallende istapper på eiendommer som truer sikkerheten?"]
[null,6,5,"Hva er risikoen for påkjørsel på treningssenterets eiendom?"]
[null,6,6,"Hva er risikoen for å bli smittet av legionella?"]
[null,6,7,"Hva er risikoen for vannlekasjer?"]
[null,6,8,"Hva er risikoen for at det er for høy temperatur i treningsarealene?"]
[null,7,0,"TRENINGSUTSTYR"]
[null,7,1,"Hva er risikoen for feil og mangler på de stasjonære treningsapparatene?"]
[null,7,2,"Hva er risikoen for personskader ved bruken av stasjonære treningsapparatene for styrketrening"]
[null,7,3,"Hva er risikoen for personskader ved bruk av stasjonere treningsapparater for spinning og løpemaskienene for kondisjonstrening"]
[null,7,4,"Hva er risikoen for feil eller mangler på frivektsutstyret?"]
[null,7,5,"Hva er risikoen for personskader ved bruken av trivektutstyret?"]

{"sheet":"Forklaring skjema","index":1,"n_rows":41,"n_cols":16,"rows_kept":41,"cut":false,"hidden":false,"merged":[[3,1,3,6],[29,9,29,10]]}
[]
[null,"Forklaring til gjennomføring og bruk av risikovurdering og skjema "]
[]
[null,"Innledende tips:\nVelg ut de områdene og de hendelsene som har mest betydning for måloppnåelse i akkurat deres virksomhet.\nBrainstorm om tema/hendelser, gjør risikovurderinger og definer tiltak sammen med dem som kjenner området og/eller kravene godt, har ansvar og kan bidra med erfaring"]
[]
[null,"Risiko = sannsynlighet * konsekvens"]
[]
[null,"Hvilke kategorier/områder/tema er man opptatt av?\nHer må virksomheten selv vurdere hvilke tema man vil dele inn i.\nEksempelvis:\n- HMS (kan igjen deles i Brann, Ergonomi, Hørselskader, Sykefravær, Ytre Miljø, etc) \n- Kvalitet\n- Økonomi\n- Omdømme\netc"]
[]
[null,"Hvilke hendelser kan oppstå som påvirker de kategorier/områder/tema er man opptatt av?\n"]
[null,"Kommentar: Man kan også sette inn positive, ØNSKEDE, hendelser og bruke skjemaet til å vurdere sannsynlighet og effekt, vurdere hvilke hendelser som gir mest effekt, planlegge hvilke tiltak som må gjøres for at denne effekten skal oppnås"]
[]
[null,"Vurdering av risiko:\n\nHvor sannsynlig er det at hendelsen skjer?\nHvis det skjer, hvor stor er påvirkningen/konsekvensen?"]
[null,"Skala når dere vurderer: "]
[null,"Skala sannsynlighet","Meget liten = 1",2,"Moderat \n= 3",4,"Meget stor \n= 5"]
[null,"Skala konsekvens","Meget liten = 1",2,"Moderat \n= 3",4,"Meget stor \n= 5"]
[null,"Skala hendelsestidpunkt/hastegrad\nKommentar: dette er ikke nødvendig å ha med, men kan være aktuelt for noen. Blir da del av det man kan kalle \"Risikograd ll\"","Om lang tid fra nå \n= 1",2,3,4,"Umiddelbart \n= 5"]
[null,"Risikograd l:\nSannsynlighet ganger konsekvens. Regnes ut automatisk","Betinget farge < 4",null,"Betinget farge 4-6",null,"Betinget farge >6"]
[null,"Risikograd ll:\nRisiko (risikograd l) ganger hendelsestidspunkt/hastegrad"]
[null,"Prioritere ut fra de hendelsene som skårer høyest\nDefinere tiltaksplan for dem med høyest skår/høyest risiko","Neglisjerbar",null,"Kritisk",null,"Signifikant"]
[]
[null,"Tiltaksplan:"]
[null,"Tiltak\nHvilke tiltak vil man gjøre for å redusere risiko enten ved:\n1) redusere sannsynligheten for at hendelsen inntreffer \neller\n2) redusere konsekvensen når hendelsen først har oppstått"]
[null,"Ansvar:\nHvem har ansvar for at tiltaket gjennomføres? Skriv inn navn eller initialer (evt roller hvsi man vil ha det uavhengig av hvilken person som har rollen. Eks leder i AMU)\nNoen ønsker også å definere roller:\nH = Hovedansvarlig\nU = Utfører (den som faktisk gjør jobben, kan være flere)\nK = Koordineres med (hvem eller hva må man samkjøre med)\nI = Informeres (hvem bør informeres)"]
[null,"Tidsfrist: \nInnen når skal tiltaket være gjennomført?"]
[null,"Status:\nDet kan være fornuftig å gjennomgå risikoplanen med jevne mellomrom. Spesielt med fokus på de tiltakene som er i gang eller ikke startet enda. ","Utført",null,"I gang",null,"Ikke startet"]
[]
[]
[null,null,null,null,null,null,null,null,null,null,null,"Konsekvens"]
[null,null,null,null,null,null,null,null,null,"Sannsynlighet",null,"Lav (Meget liten)","Lav (Meget liten)","Middels (Moderat)","Høy (Meget stor)","Høy (Meget stor)"]
[null,null,null,null,null,null,null,null,null,null,null,1,2,3,4,5]
[null,null,null,null,null,null,null,null,null,"Høy (Meget stor)",5,{"$f":"K32*L31","v":5},{"$f":"K32*M31","v":10},{"$f":"K32*N31","v":15},{"$f":"K32*O31","v":20},{"$f":"K32*P31","v":25}]
[null,null,null,null,null,null,null,null,null,"Høy (Meget stor)",4,{"$f":"K33*L31","v":4},{"$f":"K33*M31","v":8},{"$f":"K33*N31","v":12},{"$f":"K33*O31","v":16},{"$f":"K33*P31","v":20}]
[null,null,null,null,null,null,null,null,null,"Middels (Moderat)",3,{"$f":"K34*L31","v":3},{"$f":"K34*M31","v":6},{"$f":"K34*N31","v":9},{"$f":"K34*O31","v":12},{"$f":"K34*P31","v":15}]
[null,null,null,null,null,null,null,null,null,"Lav (Meget liten)",2,{"$f":"K35*L31","v":2},{"$f":"K35*M31","v":4},{"$f":"K35*N31","v":6},{"$f":"K35*O31","v":8},{"$f":"K35*P31","v":10}]
[null,null,null,null,null,null,null,null,null,"Lav (Meget liten)",1,{"$f":"K36*L31","v":1},{"$f":"K36*M31","v":2},{"$f":"K36*N31","v":3},{"$f":"K36*O31","v":4},{"$f":"K36*P31","v":5}]
[]
[]
[null,null,null,null,null,null,null,null,null,"Betinget farge < 4"]
[null,null,null,null,null,null,null,null,null,"Betinget farge 4-6"]
[null,null,null,null,null,null,null,null,null,"Betinget farge >6"]